[Event "Titled Tuesday Blitz July 4 Early 2023"]
[White "Postlmayer, Jakob"]
[Black "Ganiev, Roman"]
[WhiteFideId "1643622"]
[BlackFideId "4131452"]
[WhiteElo "2495"]
[BlackElo "2601"]
[Result "1/2-1/2"]
[Round "7"]
[TimeControl "180+2"]
[Date "2023.07.04"]
[WhiteClock "0:00:15"]
[BlackClock "0:00:10"]
[Board "129"]

1. d4 {[%clk 0:03:00]}  Nf6 {[%clk 0:02:59]} 2. c4 {[%clk 0:03:01]}  e6 {[%clk 0:03:00]} 3. g3 {[%clk 0:03:00]}  Bb4+ {[%clk 0:02:59]} 4. Bd2 {[%clk 0:03:00]}  Be7 {[%clk 0:02:59]} 5. Bg2 {[%clk 0:03:00]}  O-O {[%clk 0:02:58]} 6. Nf3 {[%clk 0:03:00]}  d5 {[%clk 0:02:59]} 7. O-O {[%clk 0:03:00]}  Nbd7 {[%clk 0:02:55]} 8. Qc2 {[%clk 0:02:59]}  c5 {[%clk 0:02:56]} 9. dxc5 {[%clk 0:02:55]}  Bxc5 {[%clk 0:02:54]} 10. cxd5 {[%clk 0:02:47]}  Nxd5 {[%clk 0:02:34]} 11. Nc3 {[%clk 0:02:46]}  Nxc3 {[%clk 0:02:32]} 12. Bxc3 {[%clk 0:02:47]}  h6 {[%clk 0:02:30]} 13. Rfd1 {[%clk 0:02:42]}  Qc7 {[%clk 0:02:30]} 14. Rac1 {[%clk 0:02:39]}  Be7 {[%clk 0:02:28]} 15. Qd2 {[%clk 0:02:34]}  Qb6 {[%clk 0:02:11]} 16. Qd4 {[%clk 0:02:31]}  Qxd4 {[%clk 0:02:10]} 17. Bxd4 {[%clk 0:02:24]}  Nb6 {[%clk 0:01:54]} 18. Ne5 {[%clk 0:02:08]}  Rd8 {[%clk 0:01:49]} 19. e3 {[%clk 0:01:54]}  Nd5 {[%clk 0:01:20]} 20. Bc5 {[%clk 0:01:44]}  Bf6 {[%clk 0:01:11]} 21. Bd4 {[%clk 0:01:34]}  Bd7 {[%clk 0:00:32]} 22. Bxd5 {[%clk 0:01:18]}  exd5 {[%clk 0:00:29]} 23. Nxd7 {[%clk 0:01:19]}  Rxd7 {[%clk 0:00:29]} 24. Bxf6 {[%clk 0:01:18]}  gxf6 {[%clk 0:00:30]} 25. Rd4 {[%clk 0:01:16]}  Kf8 {[%clk 0:00:20]} 26. Rcd1 {[%clk 0:01:15]}  Rc8 {[%clk 0:00:20]} 27. Rxd5 {[%clk 0:01:12]}  Rxd5 {[%clk 0:00:21]} 28. Rxd5 {[%clk 0:01:12]}  Rc2 {[%clk 0:00:22]} 29. Rb5 {[%clk 0:01:07]}  b6 {[%clk 0:00:23]} 30. Kg2 {[%clk 0:01:07]}  Ke7 {[%clk 0:00:23]} 31. a4 {[%clk 0:01:06]}  Ke6 {[%clk 0:00:20]} 32. g4 {[%clk 0:01:02]}  Rc4 {[%clk 0:00:18]} 33. a5 {[%clk 0:00:56]}  bxa5 {[%clk 0:00:17]} 34. Kf3 {[%clk 0:00:52]}  Rb4 {[%clk 0:00:16]} 35. Rxa5 {[%clk 0:00:52]}  Rxb2 {[%clk 0:00:16]} 36. Rxa7 {[%clk 0:00:53]}  Rb6 {[%clk 0:00:14]} 37. Ra5 {[%clk 0:00:52]}  Rb8 {[%clk 0:00:11]} 38. Kg3 {[%clk 0:00:50]}  Ke7 {[%clk 0:00:11]} 39. f4 {[%clk 0:00:50]}  Kf8 {[%clk 0:00:11]} 40. h4 {[%clk 0:00:45]}  Kg7 {[%clk 0:00:11]} 41. Kf3 {[%clk 0:00:41]}  Rb1 {[%clk 0:00:11]} 42. Ke4 {[%clk 0:00:37]}  Rb4+ {[%clk 0:00:10]} 43. Kf5 {[%clk 0:00:36]}  Rb3 {[%clk 0:00:10]} 44. e4 {[%clk 0:00:34]}  Rf3 {[%clk 0:00:09]} 45. Ra6 {[%clk 0:00:27]}  Rh3 {[%clk 0:00:07]} 46. h5 {[%clk 0:00:20]}  Rf3 {[%clk 0:00:05]} 47. Rxf6 {[%clk 0:00:18]}  Rxf4+ {[%clk 0:00:05]} 48. Kxf4 {[%clk 0:00:18]}  Kxf6 {[%clk 0:00:06]} 49. e5+ {[%clk 0:00:19]}  Ke6 {[%clk 0:00:06]} 50. Ke4 {[%clk 0:00:19]}  f6 {[%clk 0:00:04]} 51. exf6 {[%clk 0:00:19]}  Kxf6 {[%clk 0:00:05]} 52. Kf4 {[%clk 0:00:19]}  Ke6 {[%clk 0:00:05]} 53. Kf3 {[%clk 0:00:15]}  Kf6 {[%clk 0:00:04]} 54. Ke3 {[%clk 0:00:14]}  Kg5 {[%clk 0:00:04]} 55. Kf3 {[%clk 0:00:15]}  Kf6 {[%clk 0:00:04]} 56. Kf4 {[%clk 0:00:15]}  Ke6 {[%clk 0:00:05]} 57. Kg3 {[%clk 0:00:14]}  Kf6 {[%clk 0:00:05]} 58. Kh4 {[%clk 0:00:14]}  Ke6 {[%clk 0:00:06]} 59. g5 {[%clk 0:00:14]}  hxg5+ {[%clk 0:00:06]} 60. Kxg5 {[%clk 0:00:15]}  Kf7 {[%clk 0:00:07]} 61. Kh6 {[%clk 0:00:15]}  Kg8 {[%clk 0:00:07]} 62. Kg6 {[%clk 0:00:15]}  Kh8 {[%clk 0:00:08]} 63. h6 {[%clk 0:00:16]}  Kg8 {[%clk 0:00:09]} 64. h7+ {[%clk 0:00:16]}  Kh8 {[%clk 0:00:10]} 65. Kh6 {[%clk 0:00:15]} 1/2-1/2


[Site "https://www.chess.com"]

[Event "Titled Tuesday Blitz July 4 Early 2023"]
[White "Skliarov, Viktor"]
[Black "Mica, Marek"]
[WhiteFideId "14106736"]
[BlackFideId "382884"]
[WhiteElo "2597"]
[BlackElo "2482"]
[Result "1/2-1/2"]
[Round "7"]
[TimeControl "180+2"]
[Date "2023.07.04"]
[WhiteClock "0:00:06"]
[BlackClock "0:00:11"]
[Board "130"]

1. e4 {[%clk 0:03:00]}  c5 {[%clk 0:02:59]} 2. Nf3 {[%clk 0:03:00]}  g6 {[%clk 0:02:59]} 3. c3 {[%clk 0:03:00]}  d5 {[%clk 0:02:58]} 4. exd5 {[%clk 0:03:00]}  Qxd5 {[%clk 0:02:59]} 5. Na3 {[%clk 0:03:00]}  Bg7 {[%clk 0:02:56]} 6. Bc4 {[%clk 0:02:55]}  Qh5 {[%clk 0:02:53]} 7. Nb5 {[%clk 0:02:38]}  Na6 {[%clk 0:02:52]} 8. Qb3 {[%clk 0:02:37]}  Nh6 {[%clk 0:02:46]} 9. d4 {[%clk 0:02:31]}  cxd4 {[%clk 0:02:45]} 10. Bxh6 {[%clk 0:02:29]}  Bxh6 {[%clk 0:02:43]} 11. Bxf7+ {[%clk 0:02:29]}  Kf8 {[%clk 0:02:43]} 12. Nbxd4 {[%clk 0:02:18]}  Nc5 {[%clk 0:02:39]} 13. Qc4 {[%clk 0:02:17]}  b6 {[%clk 0:02:36]} 14. Ne6+ {[%clk 0:02:13]}  Bxe6 {[%clk 0:02:35]} 15. Bxe6 {[%clk 0:02:13]}  Rd8 {[%clk 0:02:32]} 16. O-O {[%clk 0:02:04]}  Rd6 {[%clk 0:02:12]} 17. Bg4 {[%clk 0:01:55]}  Qd5 {[%clk 0:02:10]} 18. Qxd5 {[%clk 0:01:49]}  Rxd5 {[%clk 0:02:11]} 19. Rad1 {[%clk 0:01:48]}  Rd6 {[%clk 0:02:08]} 20. Rxd6 {[%clk 0:01:40]}  exd6 {[%clk 0:02:09]} 21. Nd4 {[%clk 0:01:40]}  Kf7 {[%clk 0:01:59]} 22. Re1 {[%clk 0:01:38]}  a5 {[%clk 0:01:55]} 23. Bf3 {[%clk 0:01:27]}  Rc8 {[%clk 0:01:32]} 24. Bd5+ {[%clk 0:01:25]}  Kf8 {[%clk 0:01:28]} 25. Ne6+ {[%clk 0:01:12]}  Nxe6 {[%clk 0:01:27]} 26. Rxe6 {[%clk 0:01:13]}  Rd8 {[%clk 0:01:26]} 27. Kf1 {[%clk 0:01:10]}  Bg7 {[%clk 0:01:25]} 28. Ke2 {[%clk 0:01:03]}  b5 {[%clk 0:01:24]} 29. Kd3 {[%clk 0:01:02]}  b4 {[%clk 0:01:23]} 30. cxb4 {[%clk 0:00:48]}  axb4 {[%clk 0:01:24]} 31. Kc4 {[%clk 0:00:48]}  Bxb2 {[%clk 0:01:12]} 32. Kxb4 {[%clk 0:00:47]}  Bd4 {[%clk 0:01:12]} 33. a4 {[%clk 0:00:43]}  Rb8+ {[%clk 0:01:05]} 34. Kc4 {[%clk 0:00:41]}  Bc5 {[%clk 0:01:01]} 35. Bc6 {[%clk 0:00:28]}  Kf7 {[%clk 0:01:00]} 36. Re2 {[%clk 0:00:27]}  Rb4+ {[%clk 0:01:00]} 37. Kc3 {[%clk 0:00:27]}  Rh4 {[%clk 0:00:56]} 38. h3 {[%clk 0:00:25]}  Rf4 {[%clk 0:00:56]} 39. f3 {[%clk 0:00:24]}  Rb4 {[%clk 0:00:54]} 40. Ra2 {[%clk 0:00:23]}  Rb1 {[%clk 0:00:44]} 41. a5 {[%clk 0:00:22]}  Kf6 {[%clk 0:00:43]} 42. a6 {[%clk 0:00:22]}  Rg1 {[%clk 0:00:38]} 43. a7 {[%clk 0:00:19]}  Bxa7 {[%clk 0:00:38]} 44. Rxa7 {[%clk 0:00:18]}  Rc1+ {[%clk 0:00:38]} 45. Kd2 {[%clk 0:00:18]}  Rxc6 {[%clk 0:00:39]} 46. Rxh7 {[%clk 0:00:18]}  Rb6 {[%clk 0:00:39]} 47. Ke3 {[%clk 0:00:18]}  Rb3+ {[%clk 0:00:38]} 48. Kf4 {[%clk 0:00:17]}  Rb4+ {[%clk 0:00:38]} 49. Kg3 {[%clk 0:00:17]}  d5 {[%clk 0:00:37]} 50. Rd7 {[%clk 0:00:16]}  Ke6 {[%clk 0:00:37]} 51. Rd8 {[%clk 0:00:16]}  Rb2 {[%clk 0:00:35]} 52. h4 {[%clk 0:00:15]}  Ke5 {[%clk 0:00:35]} 53. Rg8 {[%clk 0:00:09]}  Kf6 {[%clk 0:00:35]} 54. Rd8 {[%clk 0:00:09]}  Ke5 {[%clk 0:00:35]} 55. Kh3 {[%clk 0:00:08]}  d4 {[%clk 0:00:34]} 56. g3 {[%clk 0:00:08]}  Rb3 {[%clk 0:00:34]} 57. Kg4 {[%clk 0:00:08]}  Rb6 {[%clk 0:00:33]} 58. Re8+ {[%clk 0:00:02]}  Kd5 {[%clk 0:00:32]} 59. Rd8+ {[%clk 0:00:01]}  Ke5 {[%clk 0:00:32]} 60. Re8+ {[%clk 0:00:02]}  Kd5 {[%clk 0:00:32]} 61. Re1 {[%clk 0:00:02]}  d3 {[%clk 0:00:32]} 62. Kg5 {[%clk 0:00:02]}  Kd4 {[%clk 0:00:32]} 63. f4 {[%clk 0:00:02]}  d2 {[%clk 0:00:29]} 64. Rd1 {[%clk 0:00:02]}  Ke3 {[%clk 0:00:29]} 65. g4 {[%clk 0:00:02]}  Ke2 {[%clk 0:00:25]} 66. Rxd2+ {[%clk 0:00:03]}  Kxd2 {[%clk 0:00:26]} 67. f5 {[%clk 0:00:02]}  gxf5 {[%clk 0:00:26]} 68. gxf5 {[%clk 0:00:03]}  Ke3 {[%clk 0:00:21]} 69. f6 {[%clk 0:00:03]}  Ke4 {[%clk 0:00:19]} 70. f7 {[%clk 0:00:04]}  Rb8 {[%clk 0:00:16]} 71. Kf6 {[%clk 0:00:04]}  Kf4 {[%clk 0:00:11]} 72. Kg7 {[%clk 0:00:05]}  Kf5 {[%clk 0:00:11]} 73. f8=Q+ {[%clk 0:00:05]}  Rxf8 {[%clk 0:00:10]} 74. Kxf8 {[%clk 0:00:06]}  Kg4 {[%clk 0:00:11]} 75. Kg7 {[%clk 0:00:06]}  Kxh4 {[%clk 0:00:11]} 1/2-1/2


[Site "https://www.chess.com"]

[Event "Titled Tuesday Blitz July 4 Early 2023"]
[White "Melikhov, Evgeny V."]
[Black "Terletsky, Oleg"]
[WhiteFideId "4122046"]
[BlackFideId "14116774"]
[WhiteElo "2392"]
[BlackElo "2544"]
[Result "1-0"]
[Round "7"]
[TimeControl "180+2"]
[Date "2023.07.04"]
[WhiteClock "0:01:16"]
[BlackClock "0:00:00"]
[Board "134"]

1. d4 {[%clk 0:03:00]}  Nf6 {[%clk 0:02:59]} 2. c4 {[%clk 0:03:00]}  g6 {[%clk 0:03:00]} 3. Nc3 {[%clk 0:03:00]}  Bg7 {[%clk 0:03:00]} 4. e4 {[%clk 0:03:00]}  d6 {[%clk 0:03:00]} 5. f3 {[%clk 0:03:00]}  O-O {[%clk 0:03:00]} 6. Be3 {[%clk 0:03:00]}  Nc6 {[%clk 0:03:00]} 7. Nge2 {[%clk 0:03:00]}  a6 {[%clk 0:03:00]} 8. Qd2 {[%clk 0:02:59]}  Rb8 {[%clk 0:03:01]} 9. Bh6 {[%clk 0:02:58]}  b5 {[%clk 0:02:59]} 10. O-O-O {[%clk 0:02:41]}  Na5 {[%clk 0:02:55]} 11. Ng3 {[%clk 0:02:38]}  Nxc4 {[%clk 0:02:54]} 12. Bxc4 {[%clk 0:02:38]}  bxc4 {[%clk 0:02:55]} 13. h4 {[%clk 0:02:29]}  c6 {[%clk 0:02:09]} 14. h5 {[%clk 0:02:27]}  Qb6 {[%clk 0:01:55]} 15. Bxg7 {[%clk 0:02:26]}  Kxg7 {[%clk 0:01:55]} 16. hxg6 {[%clk 0:02:27]}  fxg6 {[%clk 0:01:55]} 17. Qh6+ {[%clk 0:02:27]}  Kf7 {[%clk 0:01:52]} 18. Rd2 {[%clk 0:02:27]}  e5 {[%clk 0:01:30]} 19. d5 {[%clk 0:02:08]}  c5 {[%clk 0:01:14]} 20. Nf1 {[%clk 0:02:06]}  Bd7 {[%clk 0:00:31]} 21. Ne3 {[%clk 0:02:06]}  Rb7 {[%clk 0:00:25]} 22. g4 {[%clk 0:02:00]}  Rfb8 {[%clk 0:00:21]} 23. g5 {[%clk 0:01:57]}  Qa5 {[%clk 0:00:05]} 24. gxf6 {[%clk 0:01:53]}  Qxc3+ {[%clk 0:00:05]} 25. Rc2 {[%clk 0:01:32]}  Qxc2+ {[%clk 0:00:01]} 26. Nxc2 {[%clk 0:01:29]}  Kxf6 {[%clk 0:00:02]} 27. Qh4+ {[%clk 0:01:25]}  Kf7 {[%clk 0:00:01]} 28. Qxh7+ {[%clk 0:01:24]}  Kf6 {[%clk 0:00:01]} 29. Qh4+ {[%clk 0:01:17]}  Kf7 {[%clk 0:00:00]} 30. Qg5 {[%clk 0:01:16]} 1-0


[Site "https://www.chess.com"]

[Event "Titled Tuesday Blitz July 4 Early 2023"]
[White "Bilan, Danila"]
[Black "Todorovic, Bojan"]
[WhiteFideId "24161918"]
[BlackFideId "917087"]
[WhiteElo "2531"]
[BlackElo "2351"]
[Result "0-1"]
[Round "7"]
[TimeControl "180+2"]
[Date "2023.07.04"]
[WhiteClock "0:00:02"]
[BlackClock "0:00:42"]
[Board "136"]

1. d4 {[%clk 0:03:00]}  g6 {[%clk 0:02:58]} 2. Nf3 {[%clk 0:03:00]}  Bg7 {[%clk 0:02:57]} 3. Bg5 {[%clk 0:02:59]}  d6 {[%clk 0:02:55]} 4. c3 {[%clk 0:02:59]}  Nd7 {[%clk 0:02:52]} 5. Nbd2 {[%clk 0:02:59]}  c5 {[%clk 0:02:51]} 6. e3 {[%clk 0:02:59]}  Ngf6 {[%clk 0:02:50]} 7. Bc4 {[%clk 0:02:58]}  O-O {[%clk 0:02:49]} 8. O-O {[%clk 0:02:58]}  b6 {[%clk 0:02:48]} 9. e4 {[%clk 0:02:56]}  Bb7 {[%clk 0:02:27]} 10. e5 {[%clk 0:02:42]}  dxe5 {[%clk 0:02:25]} 11. dxe5 {[%clk 0:02:43]}  Nd5 {[%clk 0:02:13]} 12. e6 {[%clk 0:02:29]}  fxe6 {[%clk 0:02:12]} 13. Qe2 {[%clk 0:02:21]}  Rf5 {[%clk 0:01:51]} 14. Qxe6+ {[%clk 0:02:07]}  Kh8 {[%clk 0:01:51]} 15. Rae1 {[%clk 0:01:28]}  Nf8 {[%clk 0:01:33]} 16. Qe2 {[%clk 0:01:16]}  Bf6 {[%clk 0:01:22]} 17. Ne4 {[%clk 0:00:55]}  Ne6 {[%clk 0:01:07]} 18. Nxf6 {[%clk 0:00:45]}  Nxg5 {[%clk 0:01:06]} 19. Nxg5 {[%clk 0:00:35]}  Rxg5 {[%clk 0:01:02]} 20. Bxd5 {[%clk 0:00:29]}  Bxd5 {[%clk 0:01:01]} 21. Qxe7 {[%clk 0:00:29]}  Rxg2+ {[%clk 0:00:54]} 22. Kh1 {[%clk 0:00:23]}  Rxf2+ {[%clk 0:00:42]} 23. Ne4 {[%clk 0:00:02]} 0-1


[Site "https://www.chess.com"]

[Event "Titled Tuesday Blitz July 4 Early 2023"]
[White "Nakhbayeva, Guliskhan"]
[Black "Shuvalov, Evgenij"]
[WhiteFideId "13704788"]
[BlackFideId "4187237"]
[WhiteElo "2239"]
[BlackElo "2514"]
[Result "0-1"]
[Round "7"]
[TimeControl "180+2"]
[Date "2023.07.04"]
[WhiteClock "0:00:00"]
[BlackClock "0:00:14"]
[Board "140"]

1. d4 {[%clk 0:03:00]}  Nf6 {[%clk 0:02:59]} 2. Nf3 {[%clk 0:02:54]}  g6 {[%clk 0:02:58]} 3. Nbd2 {[%clk 0:02:52]}  d5 {[%clk 0:02:57]} 4. e3 {[%clk 0:02:46]}  Bg7 {[%clk 0:02:56]} 5. b4 {[%clk 0:02:45]}  Bg4 {[%clk 0:02:55]} 6. Be2 {[%clk 0:02:45]}  Bxf3 {[%clk 0:02:54]} 7. Nxf3 {[%clk 0:02:43]}  Nbd7 {[%clk 0:02:53]} 8. a4 {[%clk 0:02:42]}  Ne4 {[%clk 0:02:52]} 9. Bb2 {[%clk 0:02:42]}  O-O {[%clk 0:02:52]} 10. O-O {[%clk 0:02:41]}  c5 {[%clk 0:02:36]} 11. bxc5 {[%clk 0:02:30]}  Ndxc5 {[%clk 0:02:35]} 12. Ba3 {[%clk 0:02:21]}  Nc3 {[%clk 0:02:30]} 13. Qd2 {[%clk 0:02:20]}  N5e4 {[%clk 0:02:27]} 14. Qd3 {[%clk 0:02:18]}  Rc8 {[%clk 0:02:17]} 15. Bd1 {[%clk 0:01:47]}  Qc7 {[%clk 0:01:48]} 16. Bb4 {[%clk 0:01:30]}  a5 {[%clk 0:01:22]} 17. Bxc3 {[%clk 0:01:24]}  Nxc3 {[%clk 0:01:23]} 18. Nd2 {[%clk 0:01:00]}  e5 {[%clk 0:01:15]} 19. Nb3 {[%clk 0:00:44]}  b6 {[%clk 0:01:00]} 20. g3 {[%clk 0:00:21]}  e4 {[%clk 0:00:55]} 21. Qd2 {[%clk 0:00:20]}  Qc4 {[%clk 0:00:51]} 22. Re1 {[%clk 0:00:07]}  Nxa4 {[%clk 0:00:43]} 23. Nc1 {[%clk 0:00:03]}  Nc3 {[%clk 0:00:38]} 24. Ne2 {[%clk 0:00:02]}  Nxd1 {[%clk 0:00:32]} 25. Rexd1 {[%clk 0:00:01]}  Qxc2 {[%clk 0:00:32]} 26. Qe1 {[%clk 0:00:01]}  Qc6 {[%clk 0:00:20]} 27. Nf4 {[%clk 0:00:01]}  Bh6 {[%clk 0:00:20]} 28. Ne2 {[%clk 0:00:01]}  Qd6 {[%clk 0:00:17]} 29. Rdb1 {[%clk 0:00:01]}  Rc2 {[%clk 0:00:15]} 30. Rb5 {[%clk 0:00:01]}  Rfc8 {[%clk 0:00:14]} 31. Rab1 {[%clk 0:00:00]}  R8c6 {[%clk 0:00:14]} 0-1


[Site "https://www.chess.com"]

[Event "Titled Tuesday Blitz July 4 Early 2023"]
[White "Howell, David W L"]
[Black "Tsyhanchuk, Stanislav"]
[WhiteFideId "410608"]
[BlackFideId "13505130"]
[WhiteElo "2995"]
[BlackElo "2237"]
[Result "1-0"]
[Round "7"]
[TimeControl "180+2"]
[Date "2023.07.04"]
[WhiteClock "0:00:19"]
[BlackClock "0:00:02"]
[Board "142"]

1. e4 {[%clk 0:02:55]}  c5 {[%clk 0:03:00]} 2. Nf3 {[%clk 0:02:54]}  d6 {[%clk 0:03:00]} 3. Be2 {[%clk 0:02:53]}  Nc6 {[%clk 0:02:58]} 4. O-O {[%clk 0:02:51]}  g6 {[%clk 0:02:58]} 5. Re1 {[%clk 0:02:51]}  Bg7 {[%clk 0:02:59]} 6. c3 {[%clk 0:02:52]}  Nf6 {[%clk 0:02:57]} 7. Bf1 {[%clk 0:02:52]}  O-O {[%clk 0:02:57]} 8. h3 {[%clk 0:02:52]}  e5 {[%clk 0:02:54]} 9. d4 {[%clk 0:02:45]}  exd4 {[%clk 0:02:51]} 10. cxd4 {[%clk 0:02:46]}  cxd4 {[%clk 0:02:52]} 11. Nxd4 {[%clk 0:02:47]}  Ne8 {[%clk 0:02:32]} 12. Be3 {[%clk 0:02:37]}  Nc7 {[%clk 0:02:32]} 13. Nc3 {[%clk 0:02:36]}  Ne6 {[%clk 0:02:29]} 14. Ndb5 {[%clk 0:01:54]}  Be5 {[%clk 0:02:27]} 15. Qd2 {[%clk 0:01:55]}  a6 {[%clk 0:02:26]} 16. Na3 {[%clk 0:01:55]}  b5 {[%clk 0:02:23]} 17. Nd5 {[%clk 0:01:55]}  Bb7 {[%clk 0:02:13]} 18. Rad1 {[%clk 0:01:38]}  Ned4 {[%clk 0:01:37]} 19. Bg5 {[%clk 0:01:23]}  f6 {[%clk 0:01:25]} 20. Bh6 {[%clk 0:01:23]}  f5 {[%clk 0:01:13]} 21. Bxf8 {[%clk 0:01:17]}  Qxf8 {[%clk 0:01:14]} 22. Nc2 {[%clk 0:01:14]}  fxe4 {[%clk 0:01:05]} 23. Rxe4 {[%clk 0:01:11]}  Nxc2 {[%clk 0:00:48]} 24. Qxc2 {[%clk 0:01:12]}  Qf7 {[%clk 0:00:41]} 25. a4 {[%clk 0:00:59]}  Nd4 {[%clk 0:00:33]} 26. Rexd4 {[%clk 0:00:49]}  Bxd4 {[%clk 0:00:34]} 27. Rxd4 {[%clk 0:00:50]}  Bxd5 {[%clk 0:00:33]} 28. axb5 {[%clk 0:00:48]}  axb5 {[%clk 0:00:31]} 29. Bxb5 {[%clk 0:00:48]}  Be6 {[%clk 0:00:20]} 30. Rxd6 {[%clk 0:00:45]}  Bf5 {[%clk 0:00:16]} 31. Qd1 {[%clk 0:00:38]}  Kg7 {[%clk 0:00:13]} 32. g4 {[%clk 0:00:32]}  Be6 {[%clk 0:00:07]} 33. Qd4+ {[%clk 0:00:32]}  Kf8 {[%clk 0:00:04]} 34. Qh8+ {[%clk 0:00:29]}  Qg8 {[%clk 0:00:04]} 35. Qf6+ {[%clk 0:00:25]}  Bf7 {[%clk 0:00:03]} 36. Bc4 {[%clk 0:00:20]}  Ra1+ {[%clk 0:00:02]} 37. Kh2 {[%clk 0:00:20]}  Qg7 {[%clk 0:00:02]} 38. Rd8# {[%clk 0:00:19]} 1-0


[Site "https://www.chess.com"]

[Event "Titled Tuesday Blitz July 4 Early 2023"]
[White "Czerw, Dawid"]
[Black "Adireddy Arjun"]
[WhiteFideId "1145746"]
[BlackFideId "25647709"]
[WhiteElo "2576"]
[BlackElo "2362"]
[Result "1/2-1/2"]
[Round "7"]
[TimeControl "180+2"]
[Date "2023.07.04"]
[WhiteClock "0:00:06"]
[BlackClock "0:00:05"]
[Board "144"]

1. e4 {[%clk 0:03:00]}  c5 {[%clk 0:02:50]} 2. Nf3 {[%clk 0:02:59]}  Nc6 {[%clk 0:02:43]} 3. d4 {[%clk 0:02:59]}  cxd4 {[%clk 0:02:44]} 4. Nxd4 {[%clk 0:03:00]}  e6 {[%clk 0:02:44]} 5. Nc3 {[%clk 0:03:00]}  Qc7 {[%clk 0:02:44]} 6. Be3 {[%clk 0:03:00]}  Nf6 {[%clk 0:02:40]} 7. Qd2 {[%clk 0:02:50]}  Bb4 {[%clk 0:02:25]} 8. f3 {[%clk 0:02:49]}  Nxd4 {[%clk 0:02:22]} 9. Bxd4 {[%clk 0:02:44]}  e5 {[%clk 0:01:57]} 10. Bf2 {[%clk 0:02:36]}  Bxc3 {[%clk 0:01:34]} 11. bxc3 {[%clk 0:02:21]}  d6 {[%clk 0:01:34]} 12. Rd1 {[%clk 0:02:12]}  Be6 {[%clk 0:01:06]} 13. Bb5+ {[%clk 0:02:01]}  Bd7 {[%clk 0:01:02]} 14. Be2 {[%clk 0:01:54]}  Be6 {[%clk 0:00:52]} 15. Qxd6 {[%clk 0:01:17]}  Qxd6 {[%clk 0:00:09]} 16. Rxd6 {[%clk 0:01:18]}  Rc8 {[%clk 0:00:08]} 17. Bxa7 {[%clk 0:01:06]}  Rxc3 {[%clk 0:00:05]} 18. Kd2 {[%clk 0:00:45]}  Rc7 {[%clk 0:00:04]} 19. Bb6 {[%clk 0:00:41]}  Rc8 {[%clk 0:00:04]} 20. Bb5+ {[%clk 0:00:37]}  Ke7 {[%clk 0:00:04]} 21. Rd3 {[%clk 0:00:29]}  Bxa2 {[%clk 0:00:03]} 22. Ra1 {[%clk 0:00:29]}  Bc4 {[%clk 0:00:03]} 23. Bxc4 {[%clk 0:00:24]}  Rxc4 {[%clk 0:00:04]} 24. Ra7 {[%clk 0:00:24]}  Rb8 {[%clk 0:00:04]} 25. Rb3 {[%clk 0:00:22]}  Nd7 {[%clk 0:00:03]} 26. Be3 {[%clk 0:00:19]}  Rc7 {[%clk 0:00:04]} 27. c3 {[%clk 0:00:17]}  Ke6 {[%clk 0:00:03]} 28. g3 {[%clk 0:00:13]}  g6 {[%clk 0:00:03]} 29. f4 {[%clk 0:00:13]}  f6 {[%clk 0:00:03]} 30. g4 {[%clk 0:00:12]}  exf4 {[%clk 0:00:03]} 31. Bxf4 {[%clk 0:00:12]}  Ne5 {[%clk 0:00:03]} 32. Rb6+ {[%clk 0:00:11]}  Rc6 {[%clk 0:00:03]} 33. Rbxb7 {[%clk 0:00:10]}  Rxb7 {[%clk 0:00:03]} 34. Rxb7 {[%clk 0:00:11]}  Nxg4 {[%clk 0:00:03]} 35. Rxh7 {[%clk 0:00:10]}  Nf2 {[%clk 0:00:03]} 36. Ke3 {[%clk 0:00:07]}  Nd1+ {[%clk 0:00:04]} 37. Kd4 {[%clk 0:00:07]}  Nxc3 {[%clk 0:00:04]} 38. Rg7 {[%clk 0:00:06]}  Ne2+ {[%clk 0:00:04]} 39. Ke3 {[%clk 0:00:06]}  Nxf4 {[%clk 0:00:04]} 40. Kxf4 {[%clk 0:00:07]}  g5+ {[%clk 0:00:05]} 41. Kg4 {[%clk 0:00:07]}  Rc4 {[%clk 0:00:05]} 42. Kf3 {[%clk 0:00:06]}  Rc3+ {[%clk 0:00:06]} 43. Kf2 {[%clk 0:00:06]}  Rh3 {[%clk 0:00:05]} 44. Kg2 {[%clk 0:00:05]}  Re3 {[%clk 0:00:06]} 45. Rg8 {[%clk 0:00:02]}  Rxe4 {[%clk 0:00:06]} 46. Re8+ {[%clk 0:00:03]}  Kf5 {[%clk 0:00:07]} 47. Ra8 {[%clk 0:00:03]}  Rg4+ {[%clk 0:00:07]} 48. Kf3 {[%clk 0:00:03]}  Rf4+ {[%clk 0:00:08]} 49. Kg3 {[%clk 0:00:04]}  Rg4+ {[%clk 0:00:09]} 50. Kf3 {[%clk 0:00:04]}  Rb4 {[%clk 0:00:09]} 51. Kg3 {[%clk 0:00:04]}  Rb3+ {[%clk 0:00:09]} 52. Kg2 {[%clk 0:00:05]}  Kg4 {[%clk 0:00:08]} 53. Ra4+ {[%clk 0:00:05]}  Kh5 {[%clk 0:00:09]} 54. Ra8 {[%clk 0:00:05]}  f5 {[%clk 0:00:07]} 55. h3 {[%clk 0:00:05]}  Kg6 {[%clk 0:00:07]} 56. Ra6+ {[%clk 0:00:05]}  Kh5 {[%clk 0:00:06]} 57. Ra8 {[%clk 0:00:05]}  Rb2+ {[%clk 0:00:06]} 58. Kg3 {[%clk 0:00:05]}  Rc2 {[%clk 0:00:07]} 59. Rh8+ {[%clk 0:00:04]}  Kg6 {[%clk 0:00:07]} 60. Rg8+ {[%clk 0:00:05]}  Kf6 {[%clk 0:00:08]} 61. Rf8+ {[%clk 0:00:06]}  Ke6 {[%clk 0:00:08]} 62. Re8+ {[%clk 0:00:06]}  Kf7 {[%clk 0:00:05]} 63. Ra8 {[%clk 0:00:06]}  Rc3+ {[%clk 0:00:05]} 64. Kg2 {[%clk 0:00:06]}  f4 {[%clk 0:00:04]} 65. Kh2 {[%clk 0:00:02]}  Rc2+ {[%clk 0:00:03]} 66. Kg1 {[%clk 0:00:03]}  Kg6 {[%clk 0:00:03]} 67. Rg8+ {[%clk 0:00:02]}  Kf5 {[%clk 0:00:03]} 68. Rf8+ {[%clk 0:00:03]}  Ke4 {[%clk 0:00:04]} 69. Rg8 {[%clk 0:00:03]}  Kf3 {[%clk 0:00:03]} 70. Rxg5 {[%clk 0:00:03]}  Rc1+ {[%clk 0:00:03]} 71. Kh2 {[%clk 0:00:03]}  Ke3 {[%clk 0:00:03]} 72. Ra5 {[%clk 0:00:04]}  f3 {[%clk 0:00:02]} 73. Ra3+ {[%clk 0:00:04]}  Ke2 {[%clk 0:00:02]} 74. Ra2+ {[%clk 0:00:05]}  Kd3 {[%clk 0:00:02]} 75. Kg3 {[%clk 0:00:05]}  Ke3 {[%clk 0:00:01]} 76. Ra3+ {[%clk 0:00:05]}  Ke4 {[%clk 0:00:02]} 77. Ra4+ {[%clk 0:00:05]}  Kf5 {[%clk 0:00:02]} 78. Rf4+ {[%clk 0:00:05]}  Kg5 {[%clk 0:00:02]} 79. Rxf3 {[%clk 0:00:06]}  Rg1+ {[%clk 0:00:01]} 80. Kf2 {[%clk 0:00:06]}  Ra1 {[%clk 0:00:02]} 81. Rb3 {[%clk 0:00:06]}  Kh4 {[%clk 0:00:03]} 82. Kg2 {[%clk 0:00:04]}  Ra2+ {[%clk 0:00:03]} 83. Kh1 {[%clk 0:00:04]}  Rc2 {[%clk 0:00:04]} 84. Kg1 {[%clk 0:00:04]}  Rd2 {[%clk 0:00:04]} 85. Kf1 {[%clk 0:00:05]}  Rc2 {[%clk 0:00:04]} 86. Rf3 {[%clk 0:00:05]}  Rh2 {[%clk 0:00:04]} 87. Kg1 {[%clk 0:00:06]}  Rxh3 {[%clk 0:00:04]} 88. Rxh3+ {[%clk 0:00:06]}  Kxh3 {[%clk 0:00:05]} 1/2-1/2


[Site "https://www.chess.com"]